lending/lending_fUSD_20250131
["ID","MTS","AMOUNT","RATE_DAILY","PERIOD"]
[351087679,1738329071637,-2136.18,0.00017123,2]
[351087680,1738329071646,-151.0,0.00017123,2]
[351087681,1738329071655,-151.0,0.00017123,2]
[351087682,1738329071664,-860.21,0.00017123,2]
[351087683,1738329071673,-500.0,0.00017123,2]
[351087684,1738329071682,-151.0,0.00017123,2]
[351087685,1738329071691,-2394.82,0.00017123,2]
[351087686,1738329071700,-910.7,0.00017123,2]
[351087687,1738329071709,-500.0,0.00017123,2]
[351087688,1738329071718,-851.19,0.00017123,2]
[351087689,1738329071727,-64.97965239,0.00017123,2]
[351087690,1738329071753,-1161.63034761,0.00017123,2]
[351087691,1738329071763,-500.0,0.00017123,2]
[351087692,1738329071772,-151.0,0.00017123,2]
[351087693,1738329071782,-702.01,0.00017123,2]
[351087694,1738329071791,-1195.54,0.00017123,2]
[351087695,1738329071800,-914.12,0.00017123,2]
[351087696,1738329071809,-1799.07,0.00017123,2]
[351087697,1738329071818,-802.58,0.00017123,2]
[351087698,1738329071827,-1903.73,0.00017123,2]
[351087699,1738329071835,-595.06,0.00017123,2]
[351087700,1738329071845,-500.0,0.00017123,2]
[351087701,1738329071855,-462.32822076,0.00017123,2]
[351087702,1738329072400,-500.0,0.00016438,2]
[351087703,1738329072410,-500.0,0.00016438,2]
[351087704,1738329072420,-206.0,0.00016575,2]
[351087705,1738329072444,-294.0,0.00016575,2]
[351087706,1738329072453,-24.13999994,0.00016575,2]
[351087707,1738329072472,-475.86000006,0.00016575,2]
[351087708,1738329072482,-500.0,0.00016712,2]
[351087709,1738329072493,-621.42,0.00016712,2]
[351087710,1738329072503,-283.79,0.00016849,2]
[351087711,1738329072513,-281.54177924,0.00017123,2]
[351087712,1738329072523,-500.0,0.00017123,2]
[351087713,1738329072533,-500.0,0.00017123,2]
[351087714,1738329072543,-500.0,0.00017123,2]
[351087715,1738329072552,-949.43,0.00017123,2]
[351087716,1738329072563,-500.0,0.00017123,2]
[351087717,1738329072573,-1357.44,0.00017123,2]
[351087718,1738329072582,-500.0,0.00017123,2]
[351087719,1738329072592,-500.0,0.00017123,2]
[351087720,1738329072601,-1613.89,0.00017123,2]
[351087721,1738329072610,-173.43616844,0.00017123,2]
[351087722,1738329072620,-656.12661122,0.00017123,2]
[351087733,1738329523237,150.0,0.0001112,5]
[351087734,1738329569267,154.04869765,0.0002101,120]
[351087750,1738330158168,-175.6728823,9.999e-05,2]
[351087751,1738330158190,-500.0,9.999e-05,2]
[351087752,1738330158210,-187.4504062,9.999e-05,2]
[351087753,1738330158231,-500.0,9.999e-05,2]
[351087754,1738330158253,-543.17427219,9.999e-05,2]
[351087755,1738330158274,-273.64710312,9.999e-05,2]
[351087756,1738330158294,-159.12686797,9.999e-05,2]
[351087757,1738330158315,-1675.22761498,0.0001,2]
[351087758,1738330158335,-571.35419124,0.0001,2]
[351087759,1738330174771,10000.0,9.703e-05,2]
[351087760,1738330175636,-156.31,0.00016658,30]
[351087770,1738330231959,-300.0,9.999e-05,2]
[351087771,1738330231968,-150.0,9.999e-05,2]
[351087772,1738330231977,-19680.223166,0.0001,2]
[351087773,1738330231988,-616002.2714912,0.0001,2]
[351087774,1738330231999,-490366.8165,0.0001,2]
[351087775,1738330232010,-35000.0,0.0001,2]
[351087776,1738330232021,-98503.00813037,0.0001,2]
[351087777,1738330232042,-576.47308612,0.0001,2]
[351087778,1738330232053,-74362.88868432,0.0001,2]
[351087779,1738330232064,-119000.00001528,0.0001,2]
[351087780,1738330232321,-3149.4,0.0001,2]
[351087781,1738330232341,-315.1149977,0.0001,2]
[351087782,1738330232353,-926.999997,0.0001,2]
[351087783,1738330232365,-1396.50221221,0.0001,2]
[351087784,1738330232376,-1582.22003,0.0001,2]
[351087788,1738330232406,-11057.43653411,0.0001,2]
[351087790,1738330232419,-5116.0,0.0001,2]
[351088088,1738330237773,-167160.8943946,0.0001,2]
[351088089,1738330237782,-312.71326903,0.0001,2]
[351088090,1738330237792,-248.93855017,0.000101,2]
[351088091,1738330237802,-400.87,0.00010137,2]
[351088092,1738330237813,-213.87210847,0.000108,2]
[351088093,1738330237822,-300.0,0.00010999,2]
[351088094,1738330237831,-150.0,0.00010999,2]
[351088095,1738330237841,-150.0,0.00011,2]
[351088096,1738330237850,-312.71326901,0.00011087,2]
[351088097,1738330237860,-680.32055188,0.000119,2]
[351088098,1738330237870,-156.71619951,0.00011973,2]
[351088099,1738330237879,-500.0,0.00011973,2]
[351088100,1738330237888,-300.0,0.00011999,2]
[351088101,1738330237900,-124804.89587415,0.00011999,2]
[351088102,1738330237909,-180.9418793,0.00012,2]
[351088103,1738330237918,-1488896.64029266,0.00012,2]
[351088104,1738330237928,-2830.70805477,0.00012,2]
[351088105,1738330237937,-9695220.11332315,0.00012,2]
[351088106,1738330237946,-150.29,0.00012,2]
[351088107,1738330237955,-300.87,0.00012,2]
[351088108,1738330237964,-312.71326901,0.00012274,2]
[351088109,1738330237973,-438.33,0.000124,2]
[351088110,1738330237982,-438.33,0.000124,2]
[351088111,1738330237992,-1000.0,0.00012521,2]
[351088112,1738330238001,-1370.03,0.00013432,2]
[351088113,1738330238010,-312.71326901,0.00013462,2]
[351088114,1738330238019,-1202.56043897,0.00013522,2]
[351088115,1738330238030,-550.03,0.000137,2]
[351088116,1738330238041,-550.03,0.000137,2]
[351088117,1738330238051,-1161.48,0.00013986,2]
[351088118,1738330238061,-500.0,0.00014059,2]
[351088119,1738330238071,-528.35725521,0.000141,2]
[351088120,1738330238081,-1000.0,0.00014439,2]
[351088121,1738330238090,-312.71326901,0.00014649,2]
[351088122,1738330238099,-1000.0,0.00014903,2]
[351088123,1738330238108,-918.66,0.00014983,2]
[351088124,1738330238117,-2207.6599,0.00015,10]
[351088125,1738330238127,-13501.27977824,0.00015,2]
[351088126,1738330238136,-14905.5500265,0.00015,2]
[351088127,1738330238146,-1000.0,0.0001507,2]
[351088128,1738330238155,-1000.0,0.00015192,2]
[351088129,1738330238164,-2078.54,0.00015274,2]
[351088131,1738330238175,-680.32055186,0.00015302,2]
[351088133,1738330238184,-775.29185322,0.0001535,2]
[351088135,1738330238193,-250.0,0.00015552,2]
[351088137,1738330238203,-23900.0,0.00015635,2]
[351088139,1738330238212,-1370.03,0.00015696,2]
[351088141,1738330238222,-1647.21,0.0001575,2]
[351088143,1738330238231,-312.71326901,0.00015836,2]
[351088145,1738330238241,-1000.0,0.00015836,2]
[351088147,1738330238250,-1000.0,0.00015882,2]
[351088149,1738330238260,-502.0,0.00015945,2]
[351088151,1738330238269,-31719.20698009,0.00016,2]
[351088153,1738330238278,-150.0,0.00016,2]
[351088155,1738330238287,-328.9095,0.00016238,2]
[351088157,1738330238297,-158.0364,0.00016238,2]
[351088159,1738330238306,-45751.8315,0.00016338,2]
[351088160,1738330238316,-5000.0,0.00016338,2]
[351088163,1738330238326,-15042.3595,0.00016338,2]
[351088165,1738330238335,-186.01862649,0.00016409,2]
[351088166,1738330238345,-249.15659445,0.00016438,2]
[351088169,1738330238354,-230.99120606,0.00016438,2]
[351088170,1738330238364,-551.33445327,0.00016438,2]
[351088172,1738330238373,-500.0,0.00016438,2]
[351088174,1738330238382,-501.64243051,0.00016438,2]
[351088176,1738330238392,-301.85151837,0.00016438,2]
[351088178,1738330238401,-502.14893857,0.00016438,2]
[351088180,1738330238410,-500.0,0.00016438,2]
[351088182,1738330238421,-504.85557854,0.00016438,2]
[351088183,1738330238430,-500.0,0.00016438,2]
[351088184,1738330238440,-500.0,0.00016438,2]
[351088185,1738330238449,-500.0,0.00016438,2]
[351088186,1738330238458,-362.39799688,0.00016438,2]
[351088187,1738330238467,-500.0,0.00016438,2]
[351088188,1738330238476,-500.0,0.00016438,2]
[351088189,1738330238485,-500.0,0.00016438,2]
[351088190,1738330238495,-502.21858061,0.00016438,2]
[351088191,1738330238504,-500.0,0.00016438,2]
[351088192,1738330238513,-501.58656571,0.00016438,2]
[351088193,1738330238523,-500.0,0.00016438,2]
[351088194,1738330238534,-500.0,0.00016438,2]
[351088195,1738330238544,-500.0,0.00016438,2]
[351088196,1738330238553,-500.0,0.00016438,2]
[351088197,1738330238562,-500.0,0.00016438,2]
[351088198,1738330238571,-500.0,0.00016438,2]
[351088199,1738330238581,-500.0,0.00016438,2]
[351088200,1738330238590,-351.211748,0.00016438,2]
[351088201,1738330238600,-543.73551679,0.00016438,2]
[351088202,1738330238611,-500.0,0.00016438,2]
[351088203,1738330238620,-500.0,0.00016438,2]
[351088204,1738330238630,-500.0,0.00016438,2]
[351088205,1738330238640,-563.53888645,0.00016438,2]
[351088206,1738330238649,-500.0,0.00016438,2]
[351088207,1738330238658,-500.0,0.00016438,2]
[351088208,1738330238669,-500.0,0.00016438,2]
[351088209,1738330238678,-585.38,0.00016438,2]
[351088210,1738330238688,-500.0,0.00016438,2]
[351088211,1738330238697,-503.0549216,0.00016438,2]
[351088212,1738330238707,-500.0,0.00016438,2]
[351088213,1738330238717,-500.0,0.00016438,2]
[351088214,1738330238726,-500.70868636,0.00016438,2]
[351088215,1738330238735,-500.0,0.00016438,2]
[351088216,1738330238745,-500.0,0.00016438,2]
[351088217,1738330238755,-504.10444007,0.00016438,2]
[351088218,1738330238764,-500.74424708,0.00016438,2]
[351088219,1738330238774,-500.0,0.00016438,2]
[351088220,1738330238784,-500.0,0.00016438,2]
[351088221,1738330238792,-500.0,0.00016438,2]
[351088222,1738330238802,-500.0,0.00016438,2]
[351088223,1738330238812,-500.0,0.00016438,2]
[351088224,1738330238821,-500.0,0.00016438,2]
[351088225,1738330238831,-500.0,0.00016438,2]
[351088226,1738330238841,-501.6,0.00016438,2]
[351088227,1738330238850,-285.39646335,0.00016438,2]
[351088228,1738330238859,-500.0,0.00016438,2]
[351088229,1738330238868,-500.0,0.00016438,2]
[351088230,1738330238877,-500.0,0.00016438,2]
[351088231,1738330238887,-500.0,0.00016438,2]
[351088232,1738330238896,-500.0,0.00016438,2]
[351088233,1738330238905,-500.0,0.00016438,2]
[351088234,1738330238914,-500.0,0.00016438,2]
[351088235,1738330238923,-500.0,0.00016438,2]
[351088236,1738330238931,-500.0,0.00016438,2]
[351088237,1738330238940,-500.0,0.00016438,2]
[351088238,1738330238949,-500.0,0.00016438,2]
[351088239,1738330238958,-500.0,0.00016438,2]
[351088240,1738330238968,-500.0,0.00016438,2]
[351088241,1738330238977,-500.0,0.00016438,2]
[351088242,1738330238986,-289.56181369,0.00016438,2]
[351088243,1738330238995,-500.0,0.00016438,2]
[351088244,1738330239005,-1050.63,0.00016438,2]
[351088245,1738330239014,-2526.07,0.00016438,2]
[351088246,1738330239023,-500.0,0.00016438,2]
[351088247,1738330239032,-500.0,0.00016438,2]
[351088248,1738330239042,-500.0,0.00016438,2]
[351088249,1738330239051,-708.56,0.00016438,2]
[351088250,1738330239060,-500.0,0.00016438,2]
[351088251,1738330239071,-928.97,0.00016438,2]
[351088252,1738330239080,-500.0,0.00016438,2]
[351088253,1738330239089,-1010.68,0.00016438,2]
[351088254,1738330239099,-461.49325523,0.00016438,2]
[351088255,1738330239108,-660.51,0.00016438,2]
[351088256,1738330239117,-500.0,0.00016438,2]
[351088257,1738330239126,-764.61,0.00016438,2]
[351088258,1738330239135,-500.0,0.00016438,2]
[351088259,1738330239144,-823.51,0.00016438,2]
[351088260,1738330239154,-596.38,0.00016438,2]
[351088261,1738330239163,-500.0,0.00016438,2]
[351088262,1738330239173,-500.0,0.00016438,2]
[351088263,1738330239182,-500.0,0.00016438,2]
[351088264,1738330239192,-1181.6,0.00016438,2]
[351088265,1738330239202,-463.04392175,0.00016438,2]
[351088266,1738330239211,-1755.36,0.00016438,2]
[351088267,1738330239220,-504.96188994,0.00016438,2]
[351088268,1738330239230,-774.61,0.00016438,2]
[351088269,1738330239239,-691.43,0.00016438,2]
[351088270,1738330239248,-945.59,0.00016438,2]
[351088271,1738330239258,-500.0,0.00016438,2]
[351088272,1738330239267,-500.0,0.00016438,2]
[351088273,1738330239276,-500.0,0.00016438,2]
[351088274,1738330239285,-500.0,0.00016438,2]
[351088275,1738330239294,-500.0,0.00016438,2]
[351088276,1738330239303,-678.94,0.00016438,2]
[351088277,1738330239313,-500.0,0.00016438,2]
[351088278,1738330239322,-502.29,0.00016438,2]
[351088279,1738330239332,-500.0,0.00016438,2]
[351088280,1738330239341,-1393.13,0.00016438,2]
[351088281,1738330239350,-500.0,0.00016438,2]
[351088282,1738330239360,-500.0,0.00016438,2]
[351088283,1738330239369,-1153.02,0.00016438,2]
[351088284,1738330239378,-684.77,0.00016438,2]
[351088285,1738330239388,-796.76,0.00016438,2]
[351088286,1738330239398,-732.31,0.00016438,2]
[351088287,1738330239407,-500.0,0.00016438,2]
[351088288,1738330239417,-500.0,0.00016438,2]
[351088289,1738330239427,-500.0,0.00016438,2]
[351088290,1738330239436,-500.0,0.00016438,2]
[351088291,1738330239445,-1222.29,0.00016438,2]
[351088292,1738330239455,-638.90520016,0.00016438,2]
[351088293,1738330239464,-768.25,0.00016438,2]
[351088294,1738330239474,-500.0,0.00016438,2]
[351088295,1738330239483,-1062.2,0.00016438,2]
[351088296,1738330239493,-500.0,0.00016438,2]
[351088297,1738330239502,-649.99,0.00016438,2]
[351088298,1738330239511,-672.57,0.00016438,2]
[351088299,1738330239520,-707.49,0.00016438,2]
[351088300,1738330239532,-668.38,0.00016438,2]
[351088301,1738330239541,-500.0,0.00016438,2]
[351088302,1738330239550,-552.78,0.00016438,2]
[351088303,1738330239559,-498.93401998,0.00016438,2]
[351088304,1738330239569,-655.08,0.00016438,2]
[351088305,1738330239579,-853.48,0.00016438,2]
[351088306,1738330239588,-500.0,0.00016438,2]
[351088307,1738330239598,-810.58,0.00016438,2]
[351088308,1738330239608,-543.67,0.00016438,2]
[351088309,1738330239618,-500.0,0.00016438,2]
[351088310,1738330239627,-553.86,0.00016438,2]
[351088311,1738330239636,-500.0,0.00016438,2]
[351088312,1738330239645,-500.0,0.00016438,2]
[351088313,1738330239654,-500.0,0.00016438,2]
[351088314,1738330239663,-618.0,0.00016438,2]
[351088315,1738330239673,-611.55,0.00016438,2]
[351088316,1738330239683,-500.0,0.00016438,2]
[351088317,1738330239692,-528.06514001,0.00016438,2]
[351088318,1738330239701,-500.0,0.00016438,2]
[351088319,1738330239711,-780.11,0.00016438,2]
[351088320,1738330239720,-500.0,0.00016438,2]
[351088321,1738330239730,-1177.028054,0.00016438,2]
[351088322,1738330239739,-569.96,0.00016438,2]
[351088323,1738330239749,-153.436238,0.00016438,2]
[351088324,1738330239758,-667.09,0.00016438,2]
[351088325,1738330239767,-500.0,0.00016438,2]
[351088326,1738330239776,-156.034424,0.00016438,2]
[351088327,1738330239786,-906.03,0.00016438,2]
[351088328,1738330239795,-528.42,0.00016438,2]
[351088329,1738330239804,-500.0,0.00016438,2]
[351088330,1738330239814,-576.51,0.00016438,2]
[351088332,1738330239823,-1111.52,0.00016438,2]
[351088334,1738330239832,-1040.51,0.00016438,2]
[351088336,1738330239841,-500.0,0.00016438,2]
[351088338,1738330239851,-500.0,0.00016438,2]
[351088360,1738330240079,-817.512057,0.00016438,2]
[351088361,1738330240089,-558.66,0.00016438,2]
[351088362,1738330240098,-500.0,0.00016438,2]
[351088363,1738330240108,-749.14,0.00016438,2]
[351088364,1738330240117,-500.0,0.00016438,2]
[351088365,1738330240127,-1177.09,0.00016438,2]
[351088366,1738330240136,-500.0,0.00016438,2]
[351088367,1738330240144,-617.77,0.00016438,2]
[351088368,1738330240153,-500.0,0.00016438,2]
[351088369,1738330240163,-500.0,0.00016438,2]
[351088370,1738330240172,-500.0,0.00016438,2]
[351088371,1738330240180,-500.0,0.00016438,2]
[351088372,1738330240189,-500.0,0.00016438,2]
[351088373,1738330240200,-500.0,0.00016438,2]
[351088374,1738330240209,-537.27013789,0.00016438,2]
[351088375,1738330240218,-896.66,0.00016438,2]
[351088376,1738330240228,-500.0,0.00016438,2]
[351088377,1738330240237,-1019.41,0.00016438,2]
[351088378,1738330240246,-500.0,0.00016438,2]
[351088379,1738330240256,-500.0,0.00016438,2]
[351088380,1738330240265,-787.85,0.00016438,2]
[351088381,1738330240274,-749.64,0.00016438,2]
[351088382,1738330240283,-557.9,0.00016438,2]
[351088383,1738330240293,-599.93,0.00016438,2]
[351088384,1738330240302,-595.18,0.00016438,2]
[351088385,1738330240311,-500.0,0.00016438,2]
[351088386,1738330240321,-500.0,0.00016438,2]
[351088387,1738330240330,-500.0,0.00016438,2]
[351088388,1738330240340,-500.0,0.00016438,2]
[351088389,1738330240349,-658.91,0.00016438,2]
[351088390,1738330240358,-500.0,0.00016438,2]
[351088391,1738330240368,-590.44,0.00016438,2]
[351088392,1738330240378,-599.3,0.00016438,2]
[351088393,1738330240388,-633.02,0.00016438,2]
[351088394,1738330240398,-500.0,0.00016438,2]
[351088395,1738330240407,-500.0,0.00016438,2]
[351088396,1738330240417,-500.0,0.00016438,2]
[351088397,1738330240428,-722.92,0.00016438,2]
[351088398,1738330240437,-1091.9,0.00016438,2]
[351088399,1738330240447,-813.36,0.00016438,2]
[351088400,1738330240456,-501.67,0.00016438,2]
[351088401,1738330240466,-500.0,0.00016438,2]
[351088402,1738330240475,-500.0,0.00016438,2]
[351088403,1738330240484,-1147.13,0.00016438,2]
[351088404,1738330240494,-500.0,0.00016438,2]
[351088405,1738330240503,-159.506156,0.00016438,2]
[351088406,1738330240512,-665.96,0.00016438,2]
[351088407,1738330240522,-500.0,0.00016438,2]
[351088408,1738330240532,-500.0,0.00016438,2]
[351088409,1738330240543,-899.19,0.00016438,2]
[351088410,1738330240552,-500.0,0.00016438,2]
[351088411,1738330240562,-1174.92,0.00016438,2]
[351088412,1738330240574,-668.92,0.00016438,2]
[351088413,1738330240584,-912.48,0.00016438,2]
[351088414,1738330240593,-1476.07,0.00016438,2]
[351088415,1738330240603,-153.065871,0.00016438,2]
[351088416,1738330240612,-500.0,0.00016438,2]
[351088417,1738330240622,-648.91,0.00016438,2]
[351088418,1738330240631,-650.58,0.00016438,2]
[351088419,1738330240640,-2128.17,0.00016438,2]
[351088420,1738330240649,-500.0,0.00016438,2]
[351088421,1738330240658,-500.0,0.00016438,2]
[351088422,1738330240668,-689.56,0.00016438,2]
[351088423,1738330240678,-820.44,0.00016438,2]
[351088424,1738330240687,-971.49,0.00016438,2]
[351088425,1738330240697,-2443.42,0.00016438,2]
[351088426,1738330240706,-1597.55,0.00016438,2]
[351088427,1738330240715,-1387.33,0.00016438,2]
[351088428,1738330240725,-500.0,0.00016438,2]
[351088429,1738330240734,-928.42,0.00016438,2]
[351088430,1738330240744,-500.0,0.00016438,2]
[351088431,1738330240754,-500.0,0.00016438,2]
[351088432,1738330240763,-2195.25,0.00016438,2]
[351088433,1738330240773,-693.9,0.00016438,2]
[351088434,1738330240782,-159.506153,0.00016438,2]
[351088435,1738330240791,-872.91,0.00016438,2]
[351088436,1738330240800,-10802.73,0.00016438,2]
[351088437,1738330240810,-500.0,0.00016438,2]
[351088438,1738330240819,-1041.55,0.00016438,2]
[351088439,1738330240828,-777.0,0.00016438,2]
[351088440,1738330240837,-616.99,0.00016438,2]
[351088441,1738330240846,-2419.41,0.00016438,2]
[351088442,1738330240855,-500.0,0.00016438,2]
[351088443,1738330240864,-1574.18,0.00016438,2]
[351088444,1738330240873,-1389.39,0.00016438,2]
[351088445,1738330240882,-1164.06,0.00016438,2]
[351088446,1738330240891,-892.74,0.00016438,2]
[351088447,1738330240901,-153.065872,0.00016438,2]
[351088448,1738330240910,-500.0,0.00016438,2]
[351088449,1738330240919,-683.62,0.00016438,2]
[351088450,1738330240929,-1428.06,0.00016438,2]
[351088451,1738330240938,-500.0,0.00016438,2]
[351088452,1738330240948,-1479.4,0.00016438,2]
[351088453,1738330240957,-500.0,0.00016438,2]
[351088454,1738330240966,-788.4,0.00016438,2]
[351088455,1738330240975,-955.05,0.00016438,2]
[351088456,1738330240984,-1281.17,0.00016438,2]
[351088457,1738330240993,-500.0,0.00016438,2]
[351088458,1738330241002,-1032.5,0.00016438,2]
[351088459,1738330241011,-788.97,0.00016438,2]
[351088460,1738330241020,-599.37,0.00016438,2]
[351088461,1738330241029,-500.0,0.00016438,2]
[351088462,1738330241038,-1774.15,0.00016438,2]
[351088463,1738330241047,-853.36,0.00016438,2]
[351088464,1738330241057,-665.64,0.00016438,2]
[351088465,1738330241066,-692.58,0.00016438,2]
[351088466,1738330241075,-4499.05,0.00016438,2]
[351088467,1738330241085,-159.506154,0.00016438,2]
[351088468,1738330241093,-2204.99,0.00016438,2]
[351088469,1738330241103,-500.0,0.00016438,2]
[351088470,1738330241112,-1244.32,0.00016438,2]
[351088471,1738330241121,-500.0,0.00016438,2]
[351088472,1738330241130,-2221.39,0.00016438,2]
[351088473,1738330241140,-582.68,0.00016438,2]
[351088474,1738330241149,-1029.05,0.00016438,2]
[351088475,1738330241158,-1011.4,0.00016438,2]
[351088476,1738330241167,-1376.47,0.00016438,2]
[351088477,1738330241177,-4123.97,0.00016438,2]
[351088478,1738330241187,-1294.35,0.00016438,2]
[351088479,1738330241196,-902.32,0.00016438,2]
[351088480,1738330241205,-847.74,0.00016438,2]
[351088481,1738330241215,-533.87,0.00016438,2]
[351088482,1738330241226,-2673.95,0.00016438,2]
[351088483,1738330241235,-153.065871,0.00016438,2]
[351088484,1738330241245,-500.0,0.00016438,2]
[351088485,1738330241256,-460.21654168,0.00016438,2]
[351088486,1738330241265,-3729.53,0.00016438,2]
[351088487,1738330241275,-500.0,0.00016438,2]
[351088488,1738330241285,-1251.69,0.00016438,2]
[351088489,1738330241294,-860.21,0.00016438,2]
[351088490,1738330241303,-992.97,0.00016438,2]
[351088491,1738330241312,-987.07,0.00016438,2]
[351088492,1738330241321,-756.61,0.00016438,2]
[351088493,1738330241330,-664.58,0.00016438,2]
[351088494,1738330241340,-502.19,0.00016438,2]
[351088495,1738330241349,-500.0,0.00016438,2]
[351088496,1738330241359,-798.88,0.00016438,2]
[351088497,1738330241368,-1951.73,0.00016438,2]
[351088498,1738330241377,-630.67,0.00016438,2]
[351088499,1738330241387,-500.0,0.00016438,2]
[351088500,1738330241396,-915.53,0.00016438,2]
[351088501,1738330241406,-637.45,0.00016438,2]
[351088502,1738330241415,-500.0,0.00016438,2]
[351088503,1738330241425,-500.0,0.00016438,2]
[351088504,1738330241435,-500.0,0.00016438,2]
[351088505,1738330241444,-1177.21,0.00016438,2]
[351088506,1738330241454,-1804.68,0.00016438,2]
[351088507,1738330241463,-2725.19,0.00016438,2]
[351088508,1738330241473,-1925.39,0.00016438,2]
[351088509,1738330241483,-2309.95,0.00016438,2]
[351088510,1738330241492,-1862.18,0.00016438,2]
[351088511,1738330241501,-780.22,0.00016438,2]
[351088512,1738330241511,-977.44,0.00016438,2]
[351088513,1738330241520,-1774.6,0.00016438,2]
[351088514,1738330241533,-159.506154,0.00016438,2]
[351088515,1738330241543,-991.11,0.00016438,2]
[351088516,1738330241551,-1285.72,0.00016438,2]
[351088517,1738330241560,-500.0,0.00016438,2]
[351088518,1738330241571,-1845.86,0.00016438,2]
[351088519,1738330241580,-500.0,0.00016438,2]
[351088520,1738330241589,-500.0,0.00016438,2]
[351088521,1738330241598,-1408.31,0.00016438,2]
[351088522,1738330241608,-1126.86,0.00016438,2]
[351088523,1738330241618,-1863.64,0.00016438,2]
[351088524,1738330241628,-2837.3,0.00016438,2]
[351088525,1738330241637,-500.0,0.00016438,2]
[351088526,1738330241647,-3575.8,0.00016438,2]
[351088527,1738330241657,-980.91,0.00016438,2]
[351088528,1738330241666,-2345.02,0.00016438,2]
[351088529,1738330241676,-710.22,0.00016438,2]
[351088530,1738330241685,-3520.76,0.00016438,2]
[351088531,1738330241694,-500.0,0.00016438,2]
[351088532,1738330241703,-6700.13,0.00016438,2]
[351088533,1738330241712,-547.17,0.00016438,2]
[351088534,1738330241721,-1788.65,0.00016438,2]
[351088535,1738330241730,-153.436238,0.00016438,2]
[351088536,1738330241739,-500.0,0.00016438,2]
[351088537,1738330241749,-2184.0,0.00016438,2]
[351088538,1738330241759,-1475.22,0.00016438,2]
[351088539,1738330241769,-1421.48,0.00016438,2]
[351088540,1738330241780,-1714.53,0.00016438,2]
[351088541,1738330241791,-5708.97,0.00016438,2]
[351088542,1738330241800,-970.99,0.00016438,2]
[351088543,1738330241809,-500.0,0.00016438,2]
[351088544,1738330241818,-1202.06,0.00016438,2]
[351088545,1738330241826,-706.33,0.00016438,2]
[351088546,1738330241835,-500.0,0.00016438,2]
[351088547,1738330241845,-560.35,0.00016438,2]
[351088548,1738330241855,-500.0,0.00016438,2]
[351088549,1738330241865,-721.8,0.00016438,2]
[351088550,1738330241873,-3593.68,0.00016438,2]
[351088551,1738330241883,-3176.65,0.00016438,2]
[351088552,1738330241891,-6333.8,0.00016438,2]
[351088553,1738330241900,-1388.69,0.00016438,2]
[351088554,1738330241909,-3896.66,0.00016438,2]
[351088555,1738330241918,-500.0,0.00016438,2]
[351088556,1738330241927,-4983.19,0.00016438,2]
[351088557,1738330241936,-806.85,0.00016438,2]
[351088558,1738330241945,-2323.16,0.00016438,2]
[351088559,1738330241954,-500.0,0.00016438,2]
[351088560,1738330241963,-3058.4,0.00016438,2]
[351088561,1738330241972,-5624.37,0.00016438,2]
[351088562,1738330241982,-1642.11,0.00016438,2]
[351088563,1738330241991,-500.0,0.00016438,2]
[351088564,1738330241999,-2404.98,0.00016438,2]